fUST/lending_fUST_20250208
["ID","MTS","AMOUNT","RATE_DAILY","PERIOD"]
[352162636,1738967461431,-500.0,0.0001178,2]
[352162637,1738967461440,-919.46,0.0001178,2]
[352162638,1738967461449,-500.0,0.0001178,2]
[352162639,1738967461459,-500.0,0.0001178,2]
[352162640,1738967461469,-500.0,0.0001178,2]
[352162641,1738967461478,-870.82,0.0001178,2]
[352162642,1738967461487,-500.0,0.0001178,2]
[352162643,1738967461497,-512.61,0.0001178,2]
[352162644,1738967461506,-500.0,0.0001178,2]
[352162645,1738967461515,-500.0,0.0001178,2]
[352162646,1738967461530,-500.0,0.0001178,2]
[352162647,1738967461540,-500.0,0.0001178,2]
[352162648,1738967461549,-898.26,0.0001178,2]
[352162649,1738967461560,-500.0,0.0001178,2]
[352162650,1738967461569,-151.0,0.0001178,2]
[352162651,1738967461579,-151.0,0.0001178,2]
[352162652,1738967461588,-880.42,0.0001178,2]
[352162653,1738967461599,-887.0,0.0001178,2]
[352162654,1738967461608,-562.8,0.0001178,2]
[352162655,1738967461618,-930.27,0.0001178,2]
[352162656,1738967461627,-318.34193,0.0001178,2]
[352162657,1738967461636,-1236.3,0.0001178,2]
[352162658,1738967461645,-599.34,0.0001178,2]
[352162659,1738967461655,-318.34193,0.0001178,2]
[352162660,1738967461665,-500.0,0.0001178,2]
[352162661,1738967461674,-331.75,0.0001178,2]
[352162662,1738967461683,-4729.89,0.0001178,2]
[352162663,1738967461692,-613.33,0.0001178,2]
[352162664,1738967461701,-500.0,0.0001178,2]
[352162665,1738967461711,-500.0,0.0001178,2]
[352162666,1738967461720,-680.93,0.0001178,2]
[352162667,1738967461729,-2247.04,0.0001178,2]
[352162668,1738967461739,-515.32,0.0001178,2]
[352162669,1738967461748,-500.0,0.0001178,2]
[352162670,1738967461757,-2043.52975064,0.0001178,2]
[352162671,1738967461770,-820.64024936,0.0001178,2]
[352162672,1738967461780,-500.0,0.0001178,2]
[352162673,1738967461789,-500.0,0.0001178,2]
[352162674,1738967461799,-500.0,0.0001178,2]
[352162675,1738967461808,-1238.04749566,0.0001178,2]
[352162676,1738967462381,-700.0,0.00010958,2]
[352162677,1738967462876,-256.808065,0.00010958,2]
[352162707,1738968632730,-250.0,8.461e-05,2]
[352162708,1738968632740,-300.0,8.566e-05,2]
[352162709,1738968632750,-24900.0,8.567e-05,2]
[352162710,1738968632759,-290.7942443,8.681e-05,2]
[352162711,1738968632769,-438.13755228,8.783e-05,2]
[352162712,1738968632779,-197.35216332,8.783e-05,2]
[352162713,1738968632788,-2163.159601,8.934e-05,2]
[352162714,1738968632799,-2413.3291592,9.112e-05,2]
[352162715,1738968632810,-420.0,9.422e-05,2]
[352162716,1738968632819,-161.2301025,9.525e-05,2]
[352162717,1738968632829,-791.7984957,9.721e-05,2]
[352162718,1738968632838,-587.0,0.00010364,2]
[352162719,1738968632849,-176.37335087,0.00010957,2]
[352162720,1738968632858,-500.0,0.00010957,2]
[352162721,1738968632867,-431.89556892,0.00010957,2]
[352162722,1738968632876,-500.0,0.00010958,2]
[352162723,1738968632885,-226.83401468,0.00010958,2]
[352162726,1738968632894,-500.0,0.00010958,2]
[352162728,1738968632904,-500.0,0.00010958,2]
[352162730,1738968632914,-588.36,0.00010958,2]
[352162732,1738968632923,-299.87858402,0.00010958,2]
[352162734,1738968632932,-372.72,0.00010958,2]
[352162736,1738968632941,-500.0,0.00010958,2]
[352162738,1738968632950,-500.0,0.00010958,2]
[352162740,1738968632959,-500.0,0.00010958,2]
[352162742,1738968632968,-500.0,0.00010958,2]
[352162744,1738968632978,-500.0,0.00010958,2]
[352162746,1738968632987,-502.51161419,0.00010958,2]
[352162748,1738968632997,-500.0,0.00010958,2]
[352162750,1738968633006,-1194.56,0.00010958,2]
[352162752,1738968633015,-589.94,0.00010958,2]
[352162754,1738968633025,-500.0,0.00010958,2]
[352162756,1738968633034,-500.0,0.00010958,2]
[352162758,1738968633044,-500.0,0.00010958,2]
[352162760,1738968633054,-500.0,0.00010958,2]
[352162762,1738968633063,-511.96,0.00010958,2]
[352162764,1738968633073,-500.0,0.00010958,2]
[352162766,1738968633082,-500.0,0.00010958,2]
[352162768,1738968633092,-500.0,0.00010958,2]
[352162770,1738968633102,-500.0,0.00010958,2]
[352162771,1738968633111,-270.80088978,0.00010958,2]
[352162772,1738968633121,-500.0,0.00010958,2]
[352162773,1738968633131,-176.26,0.00010958,2]
[352162774,1738968633141,-297.96,0.00010958,2]
[352162775,1738968633151,-511.87366295,0.00010958,2]
[352162776,1738968633160,-500.0,0.00010958,2]
[352162777,1738968633170,-500.0,0.00010958,2]
[352162778,1738968633180,-500.0,0.00010958,2]
[352162779,1738968633190,-500.0,0.00010958,2]
[352162780,1738968633200,-402.48237584,0.00010958,2]
[352162781,1738968633213,-97.51762416,0.00010958,2]
[352162782,1738968633223,-500.0,0.00010958,2]
[352162783,1738968633233,-500.0,0.00010958,2]
[352162784,1738968633243,-500.0,0.00010958,2]
[352162785,1738968633253,-548.9,0.00010958,2]
[352162786,1738968633262,-326.2,0.00010958,2]
[352162787,1738968633272,-500.0,0.00010958,2]
[352162788,1738968633281,-500.0,0.00010958,2]
[352162789,1738968633291,-509.98,0.00010958,2]
[352162790,1738968633301,-500.0,0.00010958,2]
[352162791,1738968633311,-500.0,0.00010958,2]
[352162792,1738968633320,-500.0,0.00010958,2]
[352162793,1738968633330,-653.12,0.00010958,2]
[352162794,1738968633339,-500.0,0.00010958,2]
[352162795,1738968633349,-500.0,0.00010958,2]
[352162796,1738968633359,-231.71,0.00010958,2]
[352162797,1738968633369,-660.31,0.00010958,2]
[352162798,1738968633379,-500.0,0.00010958,2]
[352162799,1738968633389,-500.0,0.00010958,2]
[352162800,1738968633399,-665.25,0.00010958,2]
[352162801,1738968633408,-500.0,0.00010958,2]
[352162802,1738968633421,-196.92,0.00010958,2]
[352162803,1738968633430,-673.69,0.00010958,2]
[352162804,1738968633440,-500.0,0.00010958,2]
[352162805,1738968633450,-500.0,0.00010958,2]
[352162806,1738968633460,-70.26809444,0.00010958,2]
[352162807,1738968633474,-429.73190556,0.00010958,2]
[352162808,1738968633484,-500.0,0.00010958,2]
[352162809,1738968633493,-500.0,0.00010958,2]
[352162810,1738968633504,-500.0,0.00010958,2]
[352162811,1738968633514,-500.0,0.00010958,2]
[352162812,1738968633524,-500.0,0.00010958,2]
[352162813,1738968633533,-500.0,0.00010958,2]
[352162814,1738968633542,-28.27907674,0.00010958,2]
[352162815,1738968633554,-471.72092326,0.00010958,2]
[352162816,1738968633564,-500.0,0.00010958,2]
[352162817,1738968633574,-500.0,0.00010958,2]
[352162818,1738968633584,-500.0,0.00010958,2]
[352162819,1738968633593,-567.38,0.00010958,2]
[352162820,1738968633604,-500.0,0.00010958,2]
[352162821,1738968633613,-500.0,0.00010958,2]
[352162822,1738968633623,-500.0,0.00010958,2]
[352162823,1738968633633,-500.0,0.00010958,2]
[352162824,1738968633642,-500.0,0.00010958,2]
[352162825,1738968633651,-500.0,0.00010958,2]
[352162826,1738968633660,-509.57699855,0.00010958,2]
[352162827,1738968633670,-500.0,0.00010958,2]
[352162828,1738968633680,-356.08,0.00010958,2]
[352162829,1738968633689,-697.7,0.00010958,2]
[352162830,1738968633699,-500.0,0.00010958,2]
[352162831,1738968633708,-500.0,0.00010958,2]
[352162832,1738968633718,-500.0,0.00010958,2]
[352162833,1738968633728,-500.0,0.00010958,2]
[352162834,1738968633737,-500.0,0.00010958,2]
[352162835,1738968633747,-621.27753844,0.00010958,2]
[352162836,1738968633756,-500.0,0.00010958,2]
[352162837,1738968633766,-500.0,0.00010958,2]
[352162838,1738968633775,-500.0,0.00010958,2]
[352162839,1738968633785,-361.63093715,0.00010958,2]
[352162840,1738968633794,-500.0,0.00010958,2]
[352162841,1738968633804,-500.0,0.00010958,2]
[352162842,1738968633813,-500.0,0.00010958,2]
[352162843,1738968633823,-858.81,0.00010958,2]
[352162844,1738968633832,-500.0,0.00010958,2]
[352162845,1738968633842,-500.0,0.00010958,2]
[352162846,1738968633851,-500.0,0.00010958,2]
[352162847,1738968633861,-500.0,0.00010958,2]
[352162848,1738968633870,-500.0,0.00010958,2]
[352162849,1738968633880,-500.0,0.00010958,2]
[352162850,1738968633890,-222.99573887,0.00010958,2]
[352162851,1738968633900,-335.00888642,0.00010958,2]
[352162852,1738968633913,-164.99111358,0.00010958,2]
[352162853,1738968633922,-500.0,0.00010958,2]
[352162854,1738968633933,-500.0,0.00010958,2]
[352162855,1738968633943,-559.38,0.00010958,2]
[352162856,1738968633952,-500.0,0.00010958,2]
[352162857,1738968633962,-188.0,0.00010958,2]
[352162858,1738968633971,-500.0,0.00010958,2]
[352162859,1738968633981,-500.0,0.00010958,2]
[352162860,1738968633990,-500.0,0.00010958,2]
[352162861,1738968633999,-3547.42,0.00010958,2]
[352162862,1738968634009,-500.0,0.00010958,2]
[352162863,1738968634018,-40.23197406,0.00010958,2]
[352162869,1738968639006,-500.0,9.736e-05,2]
[352162870,1738968639016,-500.0,9.736e-05,2]
[352162871,1738968639026,-496.69380343,9.736e-05,2]
[352162872,1738968639036,-367.16737985,9.736e-05,2]
[352162879,1738968643736,-132.83262015,9.736e-05,2]
[352162880,1738968643746,-500.0,9.736e-05,2]
[352162881,1738968643755,-500.0,9.736e-05,2]
[352162882,1738968643766,-500.0,9.736e-05,2]
[352162883,1738968643775,-500.0,9.736e-05,2]
[352162884,1738968643786,-500.0,9.736e-05,2]
[352162886,1738968643795,-284.47037502,9.736e-05,2]
[352162887,1738968643805,-500.0,9.736e-05,2]
[352162888,1738968643814,-500.0,9.736e-05,2]
[352162889,1738968643823,-500.0,9.736e-05,2]
[352162890,1738968643833,-500.0,9.736e-05,2]
[352162891,1738968643843,-500.0,9.736e-05,2]
[352162892,1738968643852,-500.0,9.736e-05,2]
[352162893,1738968643862,-500.0,9.736e-05,2]
[352162894,1738968643871,-459.76802594,0.00010958,2]
[352162895,1738968643882,-500.0,0.00010958,2]
[352162896,1738968643891,-500.0,0.00010958,2]
[352162897,1738968644077,-500.0,0.00010958,2]
[352162898,1738968644087,-500.0,0.00010958,2]
[352162899,1738968644097,-500.0,0.00010958,2]
[352162900,1738968644107,-500.0,0.00010958,2]
[352162901,1738968644118,-1380.16,0.00010958,2]
[352162902,1738968644128,-500.0,0.00010958,2]
[352162903,1738968644138,-199.57844648,0.00010958,2]
[352162904,1738968644147,-500.0,0.00010958,2]
[352162905,1738968644157,-2148.12,0.00010958,2]
[352162906,1738968644166,-500.0,0.00010958,2]
[352162907,1738968644176,-510.7,0.00010958,2]
[352162908,1738968644185,-370.22165324,0.00010958,2]
[352162909,1738968644194,-2506.68,0.00010958,2]
[352162910,1738968644203,-500.0,0.00010958,2]
[352162911,1738968644214,-338.46887917,0.00010958,2]
[352162954,1738968813663,3000.0,0.00014,30]
[352162955,1738968814101,3000.0,0.0001401,30]
[352162956,1738968814669,3000.0,0.0001402,30]
[352162961,1738969365492,200.7,8e-05,2]
[352163012,1738969831965,-300.0,9.956e-05,2]
[352163014,1738969831975,-24900.0,9.957e-05,2]
[352163016,1738969831984,-2197.43401219,0.00010758,2]
[352163018,1738969831994,-542.40511415,0.00010758,2]
[352163020,1738969832004,-237.87041023,0.00010758,2]
[352163022,1738969832014,-254.69164066,0.00010858,2]
[352163024,1738969832024,-254.69164065,0.00010892,2]
[352163026,1738969832034,-254.69164065,0.00010927,2]
[352163029,1738969832044,-194.1863234,0.00010951,2]
[352163031,1738969832054,-420.0,0.00010952,2]
[352163033,1738969832064,-500.0,0.00010954,2]
[352163035,1738969832073,-500.0,0.00010954,2]
[352163037,1738969832083,-500.0,0.00010954,2]
[352163039,1738969832092,-383.05360976,0.00010954,2]
[352163041,1738969832103,-500.0,0.00010954,2]
[352163043,1738969832112,-500.0,0.00010954,2]
[352163045,1738969832121,-500.0,0.00010954,2]
[352163047,1738969832130,-500.0,0.00010954,2]
[352163049,1738969832139,-500.0,0.00010954,2]
[352163051,1738969832149,-500.0,0.00010954,2]
[352163053,1738969832158,-500.0,0.00010954,2]
[352163055,1738969832167,-500.0,0.00010954,2]
[352163057,1738969832176,-500.0,0.00010954,2]
[352163059,1738969832186,-500.0,0.00010954,2]
[352163060,1738969832195,-500.0,0.00010954,2]
[352163062,1738969832204,-500.0,0.00010954,2]
[352163064,1738969832214,-500.0,0.00010954,2]
[352163066,1738969832223,-500.0,0.00010954,2]
[352163068,1738969832232,-500.0,0.00010954,2]
[352163070,1738969832241,-500.0,0.00010954,2]
[352163072,1738969832250,-500.0,0.00010954,2]
[352163074,1738969832259,-500.0,0.00010954,2]
[352163076,1738969832269,-500.0,0.00010954,2]
[352163078,1738969832278,-500.0,0.00010954,2]
[352163080,1738969832287,-500.0,0.00010954,2]
[352163082,1738969832297,-500.0,0.00010954,2]
[352163084,1738969832306,-500.0,0.00010954,2]
[352163085,1738969832316,-500.0,0.00010954,2]
[352163087,1738969832325,-402.84470375,0.00010954,2]
[352163088,1738969832334,-500.0,0.00010954,2]
[352163089,1738969832344,-500.0,0.00010954,2]
[352163090,1738969832354,-500.0,0.00010954,2]
[352163091,1738969832364,-500.0,0.00010954,2]
[352163092,1738969832373,-500.0,0.00010954,2]
[352163093,1738969832383,-500.0,0.00010954,2]
[352163094,1738969832392,-500.0,0.00010954,2]
[352163095,1738969832402,-500.0,0.00010954,2]
[352163096,1738969832412,-500.0,0.00010954,2]
[352163097,1738969832421,-500.0,0.00010954,2]
[352163098,1738969832430,-500.0,0.00010954,2]
[352163099,1738969832439,-500.0,0.00010954,2]
[352163100,1738969832449,-500.0,0.00010954,2]
[352163101,1738969832458,-500.0,0.00010954,2]
[352163102,1738969832467,-500.0,0.00010954,2]
[352163103,1738969832476,-500.0,0.00010954,2]
[352163104,1738969832485,-500.0,0.00010954,2]
[352163105,1738969832494,-500.0,0.00010954,2]
[352163106,1738969832504,-500.0,0.00010954,2]
[352163107,1738969832513,-500.0,0.00010954,2]
[352163108,1738969832522,-500.0,0.00010954,2]
[352163109,1738969832532,-500.0,0.00010954,2]
[352163110,1738969832541,-500.0,0.00010954,2]
[352163111,1738969832550,-500.0,0.00010954,2]
[352163112,1738969832560,-500.0,0.00010954,2]
[352163113,1738969832569,-500.0,0.00010954,2]
[352163114,1738969832579,-500.0,0.00010954,2]
[352163115,1738969832588,-500.0,0.00010954,2]
[352163116,1738969832598,-500.0,0.00010954,2]
[352163117,1738969832607,-500.0,0.00010954,2]
[352163118,1738969832617,-500.0,0.00010954,2]
[352163119,1738969832626,-558.19443113,0.00010954,2]
[352163120,1738969832635,-385.12828622,0.00010955,2]
[352163121,1738969832646,-547.81506165,0.00010957,2]
[352163122,1738969832655,-212.99798187,0.00010957,2]
[352163123,1738969832665,-500.0,0.00010958,2]
[352163124,1738969832674,-339.24654039,0.00010958,2]
[352163125,1738969832683,-500.0,0.00010958,2]
[352163126,1738969832693,-500.0,0.00010958,2]
[352163127,1738969832702,-500.0,0.00010958,2]
[352163128,1738969832712,-500.0,0.00010958,2]
[352163129,1738969832722,-500.0,0.00010958,2]
[352163130,1738969832731,-500.0,0.00010958,2]
[352163131,1738969832741,-500.0,0.00010958,2]
[352163132,1738969832750,-500.0,0.00010958,2]
[352163133,1738969832759,-500.0,0.00010958,2]
[352163134,1738969832769,-500.0,0.00010958,2]
[352163135,1738969832778,-500.0,0.00010958,2]
[352163136,1738969832787,-500.0,0.00010958,2]
[352163137,1738969832797,-500.0,0.00010958,2]
[352163138,1738969832806,-408.81377868,0.00010958,2]
[352163139,1738969832819,-500.0,0.00010958,2]
[352163140,1738969832829,-500.0,0.00010958,2]
[352163141,1738969832838,-500.0,0.00010958,2]
[352163142,1738969832848,-500.0,0.00010958,2]
[352163143,1738969832858,-500.0,0.00010958,2]
[352163144,1738969832868,-500.0,0.00010958,2]
[352163145,1738969832877,-500.0,0.00010958,2]
[352163146,1738969832888,-500.0,0.00010958,2]
[352163147,1738969832898,-500.0,0.00010958,2]
[352163148,1738969832908,-500.0,0.00010958,2]
[352163149,1738969832917,-500.0,0.00010958,2]
[352163150,1738969832927,-501.71058701,0.00010958,2]
[352163151,1738969832936,-500.0,0.00010958,2]
[352163152,1738969832945,-500.0,0.00010958,2]
[352163153,1738969832954,-500.0,0.00010958,2]
[352163154,1738969832963,-500.0,0.00010958,2]
[352163155,1738969832972,-522.31791912,0.00010958,2]
[352163156,1738969832982,-500.0,0.00010958,2]
[352163157,1738969832991,-500.0,0.00010958,2]
[352163158,1738969833001,-500.0,0.00010958,2]
[352163159,1738969833010,-506.42611611,0.00010958,2]
[352163160,1738969833019,-501.06685821,0.00010958,2]
[352163161,1738969833029,-500.0,0.00010958,2]
[352163162,1738969833038,-500.0,0.00010958,2]
[352163163,1738969833047,-500.0,0.00010958,2]
[352163164,1738969833057,-500.0,0.00010958,2]
[352163165,1738969833066,-500.0,0.00010958,2]
[352163166,1738969833076,-500.0,0.00010958,2]
[352163167,1738969833085,-500.0,0.00010958,2]
[352163168,1738969833094,-500.0,0.00010958,2]
[352163169,1738969833104,-500.0,0.00010958,2]
[352163170,1738969833113,-500.0,0.00010958,2]
[352163171,1738969833123,-500.0,0.00010958,2]
[352163172,1738969833133,-500.0,0.00010958,2]
[352163173,1738969833142,-500.0,0.00010958,2]
[352163174,1738969833152,-500.0,0.00010958,2]
[352163175,1738969833161,-500.0,0.00010958,2]
[352163176,1738969833170,-500.0,0.00010958,2]
[352163177,1738969833180,-500.0,0.00010958,2]
[352163178,1738969833190,-500.0,0.00010958,2]
[352163179,1738969833200,-500.0,0.00010958,2]
[352163180,1738969833209,-204.33500372,0.00010958,2]
[352163181,1738969833219,-500.0,0.00010958,2]
[352163182,1738969833231,-500.0,0.00010958,2]
[352163183,1738969833241,-500.0,0.00010958,2]
[352163184,1738969833251,-535.69569744,0.00010958,2]
[352163185,1738969833260,-500.0,0.00010958,2]
[352163186,1738969833271,-507.65782551,0.00010958,2]
[352163187,1738969833280,-500.0,0.00010958,2]
[352163188,1738969833290,-502.89722518,0.00010958,2]
[352163189,1738969833299,-500.0,0.00010958,2]
[352163190,1738969833309,-500.0,0.00010958,2]
[352163191,1738969833319,-500.0,0.00010958,2]
[352163192,1738969833328,-500.0,0.00010958,2]
[352163193,1738969833337,-500.0,0.00010958,2]
[352163194,1738969833347,-500.0,0.00010958,2]
[352163195,1738969833356,-500.0,0.00010958,2]
[352163196,1738969833366,-500.0,0.00010958,2]
[352163197,1738969833376,-278.09624328,0.00010958,2]
[352163198,1738969833386,-500.0,0.00010958,2]
[352163199,1738969833395,-500.0,0.00010958,2]
[352163200,1738969833405,-597.13142421,0.00010958,2]
[352163201,1738969833415,-500.0,0.00010958,2]
[352163202,1738969833424,-500.0,0.00010958,2]
[352163203,1738969833433,-500.0,0.00010958,2]
[352163204,1738969833443,-500.0,0.00010958,2]
[352163205,1738969833453,-500.0,0.00010958,2]
[352163206,1738969833462,-500.0,0.00010958,2]
[352163207,1738969833472,-500.0,0.00010958,2]
[352163208,1738969833481,-500.0,0.00010958,2]
[352163209,1738969833491,-500.0,0.00010958,2]
[352163210,1738969833501,-500.0,0.00010958,2]
[352163211,1738969833510,-500.0,0.00010958,2]
[352163212,1738969833519,-500.0,0.00010958,2]
[352163213,1738969833529,-500.0,0.00010958,2]
[352163214,1738969833538,-500.0,0.00010958,2]
[352163215,1738969833548,-500.0,0.00010958,2]
[352163216,1738969833557,-500.0,0.00010958,2]
[352163217,1738969833567,-500.0,0.00010958,2]
[352163218,1738969833577,-500.0,0.00010958,2]
[352163219,1738969833586,-500.0,0.00010958,2]
[352163220,1738969833595,-500.0,0.00010958,2]
[352163221,1738969833605,-500.0,0.00010958,2]
[352163222,1738969833776,-500.0,0.00010958,2]
[352163223,1738969833787,-500.0,0.00010958,2]
[352163224,1738969833796,-500.0,0.00010958,2]
[352163225,1738969833806,-500.0,0.00010958,2]
[352163226,1738969833819,-500.0,0.00010958,2]
[352163227,1738969833829,-500.0,0.00010958,2]
[352163228,1738969833838,-500.0,0.00010958,2]
[352163229,1738969833849,-500.0,0.00010958,2]
[352163230,1738969833858,-500.0,0.00010958,2]
[352163231,1738969833868,-500.0,0.00010958,2]
[352163232,1738969833877,-500.0,0.00010958,2]
[352163233,1738969833886,-500.0,0.00010958,2]
[352163234,1738969833896,-280.57374757,0.00010958,2]
[352163235,1738969833906,-500.0,0.00010958,2]
[352163236,1738969833915,-500.0,0.00010958,2]
[352163237,1738969833925,-500.0,0.00010958,2]
[352163238,1738969833934,-500.0,0.00010958,2]
[352163239,1738969833944,-500.0,0.00010958,2]
[352163240,1738969833953,-304.74337935,0.00010958,2]
[352163241,1738969834178,-195.25662065,0.00010958,2]
[352163242,1738969834188,-500.0,0.00010958,2]
[352163243,1738969834198,-500.0,0.00010958,2]
[352163244,1738969834208,-500.0,0.00010958,2]
[352163245,1738969834218,-500.0,0.00010958,2]
[352163246,1738969834228,-500.0,0.00010958,2]
[352163247,1738969834238,-500.0,0.00010958,2]
[352163248,1738969834248,-500.0,0.00010958,2]
[352163249,1738969834257,-647.10610681,0.00010958,2]
[352163250,1738969834268,-500.0,0.00010958,2]
[352163251,1738969834277,-500.0,0.00010958,2]
[352163252,1738969834286,-500.0,0.00010958,2]
[352163253,1738969834296,-540.78963875,0.00010958,2]
[352163254,1738969834306,-500.0,0.00010958,2]
[352163255,1738969834316,-500.0,0.00010958,2]
[352163256,1738969834326,-553.76,0.00010958,2]
[352163257,1738969834336,-500.0,0.00010958,2]
[352163258,1738969834346,-500.0,0.00010958,2]
[352163259,1738969834356,-500.0,0.00010958,2]
[352163260,1738969834366,-500.0,0.00010958,2]
[352163261,1738969834376,-500.0,0.00010958,2]
[352163262,1738969834387,-500.0,0.00010958,2]
[352163263,1738969834397,-500.0,0.00010958,2]
[352163264,1738969834407,-500.0,0.00010958,2]
[352163265,1738969834417,-500.0,0.00010958,2]
[352163266,1738969834426,-500.0,0.00010958,2]
[352163267,1738969834436,-500.22703319,0.00010958,2]
[352163268,1738969834445,-310.44032005,0.00010958,2]
[352163269,1738969834455,-500.0,0.00010958,2]
[352163270,1738969834465,-500.0,0.00010958,2]
[352163271,1738969834475,-500.0,0.00010958,2]
[352163272,1738969834485,-500.0,0.00010958,2]
[352163273,1738969834495,-500.0,0.00010958,2]
[352163274,1738969834504,-500.0,0.00010958,2]
[352163275,1738969834514,-500.0,0.00010958,2]
[352163276,1738969834524,-973.53,0.00010958,2]
[352163277,1738969834533,-585.7,0.00010958,2]
[352163278,1738969834543,-509.33224968,0.00010958,2]
[352163279,1738969834552,-500.0,0.00010958,2]
[352163280,1738969834562,-1144.78,0.00010958,2]
[352163281,1738969834571,-500.0,0.00010958,2]
[352163282,1738969834580,-500.0,0.00010958,2]
[352163283,1738969834590,-500.0,0.00010958,2]
[352163284,1738969834601,-502.56277619,0.00010958,2]
[352163285,1738969834610,-500.0,0.00010958,2]
[352163286,1738969834620,-500.0,0.00010958,2]
[352163287,1738969834629,-500.0,0.00010958,2]
[352163288,1738969834638,-500.0,0.00010958,2]
[352163289,1738969834648,-500.0,0.00010958,2]
[352163290,1738969834657,-500.0,0.00010958,2]
[352163291,1738969834666,-500.0,0.00010958,2]
[352163292,1738969834676,-500.0,0.00010958,2]
[352163293,1738969834685,-500.0,0.00010958,2]
[352163294,1738969834695,-500.0,0.00010958,2]
[352163295,1738969834704,-500.0,0.00010958,2]
[352163296,1738969834713,-500.0,0.00010958,2]
[352163297,1738969834723,-501.44546254,0.00010958,2]
[352163298,1738969834733,-514.05859122,0.00010958,2]
[352163299,1738969834742,-500.0,0.00010958,2]
[352163300,1738969834752,-500.0,0.00010958,2]
[352163301,1738969834761,-500.0,0.00010958,2]
[352163302,1738969834771,-502.56996788,0.00010958,2]
[352163303,1738969834780,-500.0,0.00010958,2]
[352163304,1738969834789,-500.0,0.00010958,2]
[352163305,1738969834798,-501.1326791,0.00010958,2]
[352163306,1738969834812,-500.0,0.00010958,2]
[352163307,1738969834822,-500.0,0.00010958,2]
[352163308,1738969834831,-500.0,0.00010958,2]
[352163309,1738969834841,-500.0,0.00010958,2]
[352163310,1738969834851,-500.0,0.00010958,2]
[352163311,1738969834860,-500.88409937,0.00010958,2]
[352163312,1738969834870,-500.0,0.00010958,2]
[352163313,1738969834879,-500.0,0.00010958,2]
[352163314,1738969834890,-500.0,0.00010958,2]
[352163315,1738969834900,-500.0,0.00010958,2]
[352163316,1738969834909,-500.0,0.00010958,2]
[352163317,1738969834919,-500.0,0.00010958,2]
[352163318,1738969834929,-500.0,0.00010958,2]
[352163319,1738969834938,-505.13970257,0.00010958,2]
[352163320,1738969834948,-205.83572476,0.00010958,2]
[352163321,1738969834957,-500.0,0.00010958,2]
[352163322,1738969834968,-500.0,0.00010958,2]
[352163323,1738969834978,-7.53885824,0.00010958,2]
[352163324,1738969834993,-286.75,0.00010958,2]
[352163326,1738969837943,-205.71114176,0.00010958,2]
[352163327,1738969837953,-500.0,0.00010958,2]
[352163328,1738969837962,-500.0,0.00010958,2]
[352163329,1738969837972,-500.0,0.00010958,2]
[352163330,1738969837982,-500.0,0.00010958,2]
[352163331,1738969837992,-500.0,0.00010958,2]
[352163332,1738969838001,-504.80634419,0.00010958,2]
[352163333,1738969838011,-500.0,0.00010958,2]
[352163334,1738969838020,-500.0,0.00010958,2]